fUST/lending_fUST_20250705
["ID","MTS","AMOUNT","RATE_DAILY","PERIOD"]
[369791369,1751727041694,-460.0,0.00019178,2]
[369791371,1751727041703,-460.0,0.00019178,2]
[369791373,1751727041713,-638.66,0.00019178,2]
[369791375,1751727041725,-460.0,0.00019178,2]
[369791376,1751727041735,-553.5,0.00019178,2]
[369791378,1751727041744,-460.0,0.00019178,2]
[369791380,1751727041753,-460.0,0.00019178,2]
[369791382,1751727041763,-460.0,0.00019178,2]
[369791385,1751727041772,-460.0,0.00019178,2]
[369791386,1751727041782,-460.0,0.00019178,2]
[369791389,1751727041792,-751.96,0.00019178,2]
[369791391,1751727041802,-460.0,0.00019178,2]
[369791392,1751727041812,-460.0,0.00019178,2]
[369791394,1751727041821,-727.2,0.00019178,2]
[369791396,1751727041830,-460.0,0.00019178,2]
[369791398,1751727041840,-490.93,0.00019178,2]
[369791400,1751727041849,-460.0,0.00019178,2]
[369791402,1751727041858,-460.0,0.00019178,2]
[369791404,1751727041867,-460.0,0.00019178,2]
[369791406,1751727041876,-460.0,0.00019178,2]
[369791408,1751727041887,-848.54,0.00019178,2]
[369791410,1751727041896,-469.3,0.00019178,2]
[369791412,1751727041905,-460.0,0.00019178,2]
[369791414,1751727041914,-1532.7,0.00019178,2]
[369791416,1751727041923,-460.0,0.00019178,2]
[369791418,1751727041933,-553.59,0.00019178,2]
[369791420,1751727041942,-688.63,0.00019178,2]
[369791422,1751727041951,-712.12,0.00019178,2]
[369791424,1751727041961,-460.0,0.00019178,2]
[369791426,1751727041971,-460.0,0.00019178,2]
[369791428,1751727041980,-3354.45,0.00019178,2]
[369791430,1751727041989,-460.0,0.00019178,2]
[369791432,1751727041999,-2531.23,0.00019178,2]
[369791434,1751727042008,-1182.97,0.00019178,2]
[369791436,1751727042018,-460.0,0.00019178,2]
[369791438,1751727042027,-460.0,0.00019178,2]
[369791440,1751727042037,-386.89979037,0.00019178,2]
[369791442,1751727042047,-460.0,0.00019178,2]
[369791444,1751727042056,-460.0,0.00019178,2]
[369791445,1751727042065,-460.0,0.00019178,2]
[369791446,1751727042074,-460.0,0.00019178,2]
[369791447,1751727042083,-899.38,0.00019178,2]
[369791448,1751727042093,-460.0,0.00019178,2]
[369791449,1751727042102,-461.82,0.00019178,2]
[369791450,1751727042112,-800.19,0.00019178,2]
[369791451,1751727042122,-485.1,0.00019178,2]
[369791452,1751727042131,-460.0,0.00019178,2]
[369791453,1751727042140,-857.68,0.00019178,2]
[369791454,1751727042150,-477.93,0.00019178,2]
[369791455,1751727042159,-460.0,0.00019178,2]
[369791456,1751727042169,-511.67,0.00019178,2]
[369791457,1751727042179,-155.0,0.00019178,2]
[369791458,1751727042188,-460.0,0.00019178,2]
[369791459,1751727042197,-5677.25,0.00019178,2]
[369791460,1751727042206,-460.0,0.00019178,2]
[369791461,1751727042215,-2248.34,0.00019178,2]
[369791462,1751727042224,-460.0,0.00019178,2]
[369791463,1751727042233,-460.0,0.00019178,2]
[369791464,1751727042242,-294.00385002,0.00019178,2]
[369791465,1751727042251,-460.0,0.00019178,2]
[369791466,1751727042260,-750.64,0.00019178,2]
[369791467,1751727042269,-460.0,0.00019178,2]
[369791469,1751727042278,-460.0,0.00019178,2]
[369791471,1751727042288,-460.0,0.00019178,2]
[369791473,1751727042297,-612.15,0.00019178,2]
[369791475,1751727042307,-460.0,0.00019178,2]
[369791477,1751727042317,-460.0,0.00019178,2]
[369791479,1751727042326,-460.0,0.00019178,2]
[369791481,1751727042336,-460.0,0.00019178,2]
[369791483,1751727042345,-463.74128595,0.00019178,2]
[369791485,1751727042356,-460.0,0.00019178,2]
[369791487,1751727042365,-460.0,0.00019178,2]
[369791489,1751727042375,-1077.62,0.00019178,2]
[369791491,1751727042384,-460.0,0.00019178,2]
[369791493,1751727042394,-1602.56,0.00019178,2]
[369791495,1751727042403,-479.27,0.00019178,2]
[369791497,1751727042412,-460.0,0.00019178,2]
[369791499,1751727042422,-1924.58,0.00019178,2]
[369791501,1751727042432,-460.0,0.00019178,2]
[369791503,1751727042441,-2674.02,0.00019178,2]
[369791505,1751727042450,-1455.72,0.00019178,2]
[369791507,1751727042460,-500.0,0.00019178,2]
[369791508,1751727042469,-208.887336,0.00019178,2]
[369791511,1751727042479,-666.0,0.00019178,2]
[369791513,1751727042489,-151.0,0.00019205,2]
[369791515,1751727042499,-151.0,0.00019205,2]
[369791516,1751727042509,-151.0,0.00019205,2]
[369791518,1751727042518,-500.0,0.00019205,2]
[369791520,1751727042528,-151.0,0.00019205,2]
[369791522,1751727042539,-151.0,0.00019233,2]
[369791525,1751727042549,-198.0,0.00019233,2]
[369791527,1751727042559,-151.0,0.00019233,2]
[369791530,1751727042568,-172.10464361,0.00019233,2]
[369791533,1751727042579,-198.0,0.00019233,2]
[369791535,1751727042590,-151.0,0.0001926,2]
[369791536,1751727042600,-151.0,0.0001926,2]
[369791538,1751727042609,-229.0,0.00019288,2]
[369791540,1751727042618,-247.52401893,0.00019288,2]
[369791542,1751727042628,-366.5862663,0.000193,2]
[369791544,1751727042637,-318.7175578,0.000193,2]
[369791546,1751727042646,-34622.78603705,0.00019329,2]
[369791550,1751727042668,-7361.64325117,0.00019329,2]
[369791553,1751727042678,-411.13912894,0.00019352,2]
[369791555,1751727042687,-460.0,0.00019452,2]
[369791557,1751727042696,-460.0,0.00019452,2]
[369791559,1751727042706,-532.28948056,0.00019452,2]
[369791561,1751727042716,-460.0,0.00019452,2]
[369791563,1751727042728,-460.0,0.00019452,2]
[369791565,1751727042737,-460.0,0.00019452,2]
[369791567,1751727042747,-460.0,0.00019452,2]
[369791569,1751727042756,-460.0,0.00019452,2]
[369791571,1751727042765,-460.0,0.00019452,2]
[369791573,1751727042774,-460.0,0.00019452,2]
[369791575,1751727042784,-460.0,0.00019452,2]
[369791576,1751727042793,-460.0,0.00019452,2]
[369791578,1751727042803,-460.0,0.00019452,2]
[369791581,1751727042814,-460.0,0.00019452,2]
[369791582,1751727042823,-460.0,0.00019452,2]
[369791584,1751727042832,-460.0,0.00019452,2]
[369791587,1751727042842,-460.0,0.00019452,2]
[369791589,1751727042851,-460.0,0.00019452,2]
[369791590,1751727042861,-460.0,0.00019452,2]
[369791592,1751727042870,-460.0,0.00019452,2]
[369791594,1751727042882,-460.0,0.00019452,2]
[369791597,1751727042892,-460.0,0.00019452,2]
[369791599,1751727042902,-460.0,0.00019452,2]
[369791601,1751727042912,-460.0,0.00019452,2]
[369791602,1751727042921,-460.0,0.00019452,2]
[369791604,1751727042931,-460.0,0.00019452,2]
[369791606,1751727042940,-460.0,0.00019452,2]
[369791608,1751727042949,-460.0,0.00019452,2]
[369791610,1751727042959,-470.3370044,0.00019452,2]
[369791612,1751727042968,-460.0,0.00019452,2]
[369791614,1751727042977,-460.0,0.00019452,2]
[369791616,1751727042987,-460.0,0.00019452,2]
[369791618,1751727042996,-460.0,0.00019452,2]
[369791620,1751727043006,-460.0,0.00019452,2]
[369791622,1751727043015,-460.0,0.00019452,2]
[369791624,1751727043024,-460.0,0.00019452,2]
[369791626,1751727043034,-81.79573057,0.00019452,2]
[369791646,1751727043210,-623.62611706,0.00019168,3]
[369791947,1751727046329,-520.02388294,0.00019168,3]
[369791949,1751727046338,-324.77797581,0.00019178,2]
[369799459,1751727347720,177.0,0.00016438,3]
[369799461,1751727528713,261.05154,0.00013699,2]
[369799486,1751728232604,-195.8705281,0.00017869,2]
[369799487,1751728232613,-290.05808272,0.00018082,2]
[369800063,1751728238583,-710.29529598,0.00018082,2]
[369800065,1751728238592,-300.0,0.00018232,2]
[369800067,1751728238601,-1086.0,0.00018232,2]
[369800069,1751728238610,-24900.0,0.00018233,2]
[369800070,1751728238619,-500.0,0.00018664,2]
[369800072,1751728238627,-1479.54985862,0.000189,2]
[369800074,1751728238636,-645.10804828,0.00019078,2]
[369800076,1751728238645,-207.4,0.00019166,2]
[369800078,1751728238654,-500.0,0.00019166,2]
[369800080,1751728238663,-500.0,0.00019166,2]
[369800082,1751728238672,-151.0,0.00019166,2]
[369800084,1751728238681,-300.0,0.00019166,2]
[369800086,1751728238691,-173.37575435,0.00019166,2]
[369800088,1751728238700,-661.23047706,0.00019166,2]
[369800090,1751728238709,-1286.61,0.00019168,3]
[369800092,1751728238718,-197.96060783,0.00019177,2]
[369800094,1751728238728,-135.22202419,0.00019178,2]
[369800096,1751728238737,-460.0,0.00019178,2]
[369800098,1751728238746,-460.0,0.00019178,2]
[369800100,1751728238755,-460.0,0.00019178,2]
[369800102,1751728238764,-460.0,0.00019178,2]
[369800104,1751728238773,-460.0,0.00019178,2]
[369800107,1751728238782,-460.0,0.00019178,2]
[369800109,1751728238792,-486.96,0.00019178,2]
[369800112,1751728238811,-460.0,0.00019178,2]
[369800114,1751728238821,-460.0,0.00019178,2]
[369800116,1751728238830,-460.0,0.00019178,2]
[369800118,1751728238839,-460.0,0.00019178,2]
[369800120,1751728238849,-460.0,0.00019178,2]
[369800122,1751728238858,-460.0,0.00019178,2]
[369800124,1751728238868,-460.0,0.00019178,2]
[369800126,1751728238877,-468.87,0.00019178,2]
[369800128,1751728238887,-556.22,0.00019178,2]
[369800131,1751728238897,-842.32,0.00019178,2]
[369800133,1751728238906,-464.70335172,0.00019178,2]
[369800134,1751728238915,-460.0,0.00019178,2]
[369800137,1751728238925,-460.0,0.00019178,2]
[369800138,1751728238934,-460.0,0.00019178,2]
[369800141,1751728238943,-460.0,0.00019178,2]
[369800143,1751728238953,-460.0,0.00019178,2]
[369800145,1751728238962,-460.0,0.00019178,2]
[369800147,1751728238972,-510.66740371,0.00019178,2]
[369800149,1751728238981,-460.0,0.00019178,2]
[369800151,1751728238990,-460.0,0.00019178,2]
[369800152,1751728238999,-460.0,0.00019178,2]
[369800154,1751728239009,-460.0,0.00019178,2]
[369800156,1751728239018,-460.0,0.00019178,2]
[369800158,1751728239028,-460.0,0.00019178,2]
[369800160,1751728239038,-1198.12,0.00019178,2]
[369800162,1751728239047,-460.0,0.00019178,2]
[369800164,1751728239057,-460.0,0.00019178,2]
[369800166,1751728239066,-460.0,0.00019178,2]
[369800168,1751728239076,-151.0,0.00019178,2]
[369800170,1751728239085,-460.0,0.00019178,2]
[369800172,1751728239095,-460.0,0.00019178,2]
[369800174,1751728239105,-460.0,0.00019178,2]
[369800176,1751728239114,-1385.11,0.00019178,2]
[369800178,1751728239124,-151.525355,0.00019178,2]
[369800180,1751728239133,-460.0,0.00019178,2]
[369800182,1751728239143,-460.0,0.00019178,2]
[369800184,1751728239152,-151.0,0.00019178,2]
[369800186,1751728239162,-460.0,0.00019178,2]
[369800188,1751728239172,-547.64,0.00019178,2]
[369800190,1751728239182,-460.0,0.00019178,2]
[369800192,1751728239191,-548.64,0.00019178,2]
[369800194,1751728239201,-460.0,0.00019178,2]
[369800196,1751728239211,-460.0,0.00019178,2]
[369800198,1751728239220,-915.95,0.00019178,2]
[369800200,1751728239230,-408.78252256,0.00019178,2]
[369800202,1751728239240,-460.0,0.00019178,2]
[369800204,1751728239250,-460.0,0.00019178,2]
[369800206,1751728239259,-164.73710336,0.00019178,2]
[369800208,1751728239268,-413.01177765,0.00019178,2]
[369800210,1751728239278,-468.48826972,0.00019178,2]
[369800212,1751728239288,-200.01418152,0.00019178,2]
[369800215,1751728239298,-151.0,0.00019178,2]
[369800218,1751728239307,-167.18271929,0.00019178,2]
[369800221,1751728239316,-151.0,0.00019178,2]
[369800224,1751728239326,-460.0,0.00019178,2]
[369800227,1751728239335,-460.0,0.00019178,2]
[369800230,1751728239345,-460.0,0.00019178,2]
[369800233,1751728239354,-460.0,0.00019178,2]
[369800235,1751728239363,-300.0,0.00019178,2]
[369800237,1751728239373,-460.0,0.00019178,2]
[369800239,1751728239382,-460.0,0.00019178,2]
[369800241,1751728239391,-530.09944916,0.00019178,2]
[369800243,1751728239400,-460.0,0.00019178,2]
[369800245,1751728239410,-460.0,0.00019178,2]
[369800248,1751728239423,-460.0,0.00019178,2]
[369800250,1751728239438,-460.0,0.00019178,2]
[369800252,1751728239448,-151.0,0.00019178,2]
[369800254,1751728239457,-460.0,0.00019178,2]
[369800256,1751728239466,-460.0,0.00019178,2]
[369800258,1751728239475,-460.0,0.00019178,2]
[369800260,1751728239484,-460.0,0.00019178,2]
[369800263,1751728239494,-460.0,0.00019178,2]
[369800266,1751728239503,-460.0,0.00019178,2]
[369800269,1751728239513,-460.0,0.00019178,2]
[369800271,1751728239522,-460.0,0.00019178,2]
[369800273,1751728239533,-460.0,0.00019178,2]
[369800275,1751728239543,-460.0,0.00019178,2]
[369800277,1751728239552,-460.0,0.00019178,2]
[369800279,1751728239562,-460.0,0.00019178,2]
[369800281,1751728239571,-460.0,0.00019178,2]
[369800283,1751728239581,-460.0,0.00019178,2]
[369800285,1751728239591,-460.0,0.00019178,2]
[369800287,1751728239601,-460.0,0.00019178,2]
[369800289,1751728239611,-473.71,0.00019178,2]
[369800291,1751728239620,-460.0,0.00019178,2]
[369800293,1751728239631,-460.0,0.00019178,2]
[369800295,1751728239640,-460.0,0.00019178,2]
[369800297,1751728239650,-460.0,0.00019178,2]
[369800299,1751728239659,-544.23,0.00019178,2]
[369800301,1751728239669,-460.0,0.00019178,2]
[369800303,1751728239679,-460.0,0.00019178,2]
[369800305,1751728239688,-460.0,0.00019178,2]
[369800307,1751728239698,-460.0,0.00019178,2]
[369800309,1751728239708,-460.0,0.00019178,2]
[369800311,1751728239717,-151.0,0.00019178,2]
[369800313,1751728239727,-460.0,0.00019178,2]
[369800315,1751728239736,-460.0,0.00019178,2]
[369800317,1751728239746,-460.0,0.00019178,2]
[369800319,1751728239755,-460.0,0.00019178,2]
[369800321,1751728239765,-460.0,0.00019178,2]
[369800323,1751728239774,-460.0,0.00019178,2]
[369800325,1751728239784,-640.81,0.00019178,2]
[369800327,1751728239794,-460.0,0.00019178,2]
[369800329,1751728239803,-460.0,0.00019178,2]
[369800331,1751728239813,-460.0,0.00019178,2]
[369800333,1751728239823,-460.0,0.00019178,2]
[369800335,1751728239832,-1173.15,0.00019178,2]
[369800337,1751728239842,-151.0,0.00019178,2]
[369800339,1751728239851,-511.43,0.00019178,2]
[369800341,1751728239861,-829.08,0.00019178,2]
[369800343,1751728239870,-503.17198625,0.00019178,2]
[369800345,1751728239880,-818.45,0.00019178,2]
[369800347,1751728239890,-282.045458,0.00019178,2]
[369800349,1751728239899,-151.0,0.00019178,2]
[369800351,1751728239909,-460.0,0.00019178,2]
[369800353,1751728239919,-460.0,0.00019178,2]
[369800355,1751728239929,-288.7404468,0.00019178,2]
[369800357,1751728239938,-460.0,0.00019178,2]
[369800359,1751728239948,-460.0,0.00019178,2]
[369800361,1751728239957,-462.9226101,0.00019178,2]
[369800363,1751728239967,-460.0,0.00019178,2]
[369800365,1751728239977,-151.0,0.00019178,2]
[369800367,1751728239987,-154.422424,0.00019178,2]
[369800369,1751728239997,-151.0,0.00019178,2]
[369800371,1751728240006,-460.0,0.00019178,2]
[369800373,1751728240016,-460.0,0.00019178,2]
[369800375,1751728240025,-460.0,0.00019178,2]
[369800377,1751728240035,-460.0,0.00019178,2]
[369800379,1751728240044,-151.0,0.00019178,2]
[369800381,1751728240054,-460.0,0.00019178,2]
[369800383,1751728240066,-460.0,0.00019178,2]
[369800385,1751728240075,-151.0,0.00019178,2]
[369800387,1751728240085,-460.0,0.00019178,2]
[369800389,1751728240094,-341.28929678,0.00019178,2]
[369800391,1751728240104,-152.375359,0.00019178,2]
[369800393,1751728240115,-460.0,0.00019178,2]
[369800395,1751728240124,-151.0,0.00019178,2]
[369800397,1751728240134,-460.0,0.00019178,2]
[369800399,1751728240144,-460.0,0.00019178,2]
[369800401,1751728240153,-460.0,0.00019178,2]
[369800403,1751728240163,-460.0,0.00019178,2]
[369800405,1751728240173,-460.0,0.00019178,2]
[369800407,1751728240183,-151.0,0.00019178,2]
[369800409,1751728240193,-605.44,0.00019178,2]
[369800411,1751728240203,-460.0,0.00019178,2]
[369800413,1751728240213,-460.0,0.00019178,2]
[369800415,1751728240223,-477.38,0.00019178,2]
[369800417,1751728240233,-460.0,0.00019178,2]
[369800419,1751728240242,-460.0,0.00019178,2]
[369800421,1751728240252,-460.0,0.00019178,2]
[369800423,1751728240262,-460.0,0.00019178,2]
[369800425,1751728240272,-462.82121412,0.00019178,2]
[369800427,1751728240282,-460.0,0.00019178,2]
[369800429,1751728240291,-460.0,0.00019178,2]
[369800431,1751728240301,-460.0,0.00019178,2]
[369800433,1751728240310,-460.0,0.00019178,2]
[369800435,1751728240320,-151.0,0.00019178,2]
[369800437,1751728240329,-460.0,0.00019178,2]
[369800439,1751728240338,-460.0,0.00019178,2]
[369800441,1751728240347,-460.0,0.00019178,2]
[369800443,1751728240357,-460.0,0.00019178,2]
[369800445,1751728240366,-460.0,0.00019178,2]
[369800447,1751728240376,-460.0,0.00019178,2]
[369800449,1751728240385,-151.0,0.00019178,2]
[369800451,1751728240394,-460.0,0.00019178,2]
[369800453,1751728240404,-151.0,0.00019178,2]
[369800455,1751728240415,-151.0,0.00019178,2]
[369800457,1751728240425,-460.0,0.00019178,2]
[369800459,1751728240439,-460.0,0.00019178,2]
[369800461,1751728240449,-1746.47,0.00019178,2]
[369800463,1751728240458,-460.0,0.00019178,2]
[369800465,1751728240468,-460.0,0.00019178,2]
[369800467,1751728240477,-151.0,0.00019178,2]
[369800469,1751728240486,-460.0,0.00019178,2]
[369800471,1751728240496,-460.0,0.00019178,2]
[369800473,1751728240505,-460.0,0.00019178,2]
[369800475,1751728240514,-460.0,0.00019178,2]
[369800477,1751728240524,-460.0,0.00019178,2]
[369800479,1751728240534,-460.0,0.00019178,2]
[369800481,1751728240544,-460.0,0.00019178,2]
[369800483,1751728240553,-460.0,0.00019178,2]
[369800485,1751728240565,-460.0,0.00019178,2]
[369800487,1751728240574,-1036.02,0.00019178,2]
[369800489,1751728240584,-662.47,0.00019178,2]
[369800491,1751728240595,-461.02417692,0.00019178,2]
[369800493,1751728240604,-460.0,0.00019178,2]
[369800495,1751728240614,-460.0,0.00019178,2]
[369800497,1751728240624,-460.0,0.00019178,2]
[369800499,1751728240633,-3267.76,0.00019178,2]
[369800501,1751728240643,-460.0,0.00019178,2]
[369800503,1751728240652,-2133.56,0.00019178,2]
[369800505,1751728240661,-3079.9,0.00019178,2]
[369800507,1751728240670,-460.0,0.00019178,2]
[369800509,1751728240680,-460.0,0.00019178,2]
[369800511,1751728240689,-460.0,0.00019178,2]
[369800513,1751728240700,-460.0,0.00019178,2]
[369800515,1751728240710,-736.05,0.00019178,2]
[369800517,1751728240721,-460.0,0.00019178,2]
[369800519,1751728240730,-2623.93,0.00019178,2]
[369800521,1751728240740,-460.0,0.00019178,2]
[369800523,1751728240750,-460.0,0.00019178,2]
[369800525,1751728240760,-5899.19,0.00019178,2]
[369800527,1751728240770,-1275.43,0.00019178,2]
[369800529,1751728240780,-460.0,0.00019178,2]
[369800531,1751728240790,-1685.45,0.00019178,2]
[369800533,1751728240800,-461.55262705,0.00019178,2]
[369800536,1751728240810,-460.0,0.00019178,2]
[369800538,1751728240821,-460.0,0.00019178,2]
[369800540,1751728240831,-460.0,0.00019178,2]
[369800542,1751728240841,-460.0,0.00019178,2]
[369800544,1751728240850,-460.0,0.00019178,2]
[369800546,1751728240860,-151.0,0.00019178,2]
[369800548,1751728240871,-460.0,0.00019178,2]
[369800550,1751728240881,-493.35,0.00019178,2]
[369800552,1751728240891,-604.25,0.00019178,2]
[369800554,1751728240901,-460.0,0.00019178,2]
[369800556,1751728240911,-460.0,0.00019178,2]
[369800558,1751728240922,-460.0,0.00019178,2]
[369800560,1751728240932,-460.0,0.00019178,2]
[369800562,1751728240942,-5891.46,0.00019178,2]
[369800564,1751728240952,-151.0,0.00019178,2]
[369800567,1751728240962,-237.68050003,0.00019178,2]
[369800569,1751728240983,-1568.05,0.00019178,2]
[369800572,1751728240994,-843.99,0.00019178,2]
[369800574,1751728241004,-554.82707533,0.00019178,2]
[369800576,1751728241015,-151.000001,0.00019178,2]
[369800578,1751728241025,-460.0,0.00019178,2]
[369800580,1751728241037,-515.67,0.00019178,2]
[369800582,1751728241047,-1320.23,0.00019178,2]
[369800584,1751728241057,-460.0,0.00019178,2]
[369800586,1751728241068,-460.0,0.00019178,2]
[369800588,1751728241079,-460.0,0.00019178,2]
[369800590,1751728241089,-746.4,0.00019178,2]
[369800592,1751728241101,-460.0,0.00019178,2]
[369800595,1751728241110,-460.0,0.00019178,2]
[369800597,1751728241121,-151.185124,0.00019178,2]
[369800599,1751728241131,-1048.55,0.00019178,2]
[369800601,1751728241140,-460.0,0.00019178,2]
[369800603,1751728241150,-961.57,0.00019178,2]
[369800605,1751728241160,-460.0,0.00019178,2]
[369800607,1751728241170,-460.0,0.00019178,2]
[369800609,1751728241181,-363.59551024,0.00019178,2]
[369800611,1751728241191,-460.0,0.00019178,2]
[369800613,1751728241202,-460.0,0.00019178,2]
[369800615,1751728241212,-1389.1,0.00019178,2]
[369800617,1751728241222,-540.95,0.00019178,2]
[369800619,1751728241232,-460.0,0.00019178,2]
[369800621,1751728241242,-555.14,0.00019178,2]
[369800623,1751728241252,-460.0,0.00019178,2]
[369800625,1751728241263,-460.0,0.00019178,2]
[369800627,1751728241274,-460.0,0.00019178,2]
[369800629,1751728241284,-463.88044374,0.00019178,2]
[369800631,1751728241295,-460.0,0.00019178,2]
[369800634,1751728241305,-460.0,0.00019178,2]
[369800636,1751728241316,-460.0,0.00019178,2]
[369800638,1751728241326,-507.25,0.00019178,2]
[369800640,1751728241336,-460.0,0.00019178,2]
[369800642,1751728241346,-460.0,0.00019178,2]
[369800644,1751728241357,-460.0,0.00019178,2]
[369800646,1751728241367,-2127.43,0.00019178,2]
[369800648,1751728241377,-460.0,0.00019178,2]
[369800650,1751728241388,-482.52,0.00019178,2]
[369800652,1751728241398,-516.28,0.00019178,2]
[369800654,1751728241408,-460.0,0.00019178,2]
[369800656,1751728241418,-460.0,0.00019178,2]
[369800658,1751728241429,-460.0,0.00019178,2]
[369800660,1751728241442,-2967.2,0.00019178,2]
[369800663,1751728241452,-460.0,0.00019178,2]
[369800665,1751728241462,-460.0,0.00019178,2]
[369800667,1751728241472,-460.0,0.00019178,2]
[369800668,1751728241481,-151.0,0.00019178,2]
[369800671,1751728241491,-460.0,0.00019178,2]
[369800673,1751728241501,-460.0,0.00019178,2]
[369800675,1751728241512,-460.0,0.00019178,2]
[369800677,1751728241522,-460.0,0.00019178,2]
[369800679,1751728241532,-460.0,0.00019178,2]
[369800681,1751728241542,-1831.94,0.00019178,2]
[369800683,1751728241552,-460.0,0.00019178,2]
[369800685,1751728241563,-1837.2,0.00019178,2]
[369800687,1751728241572,-647.19,0.00019178,2]
[369800689,1751728241582,-4472.86,0.00019178,2]
[369800691,1751728241593,-460.0,0.00019178,2]
[369800693,1751728241605,-460.0,0.00019178,2]
[369800695,1751728241616,-1172.33,0.00019178,2]
[369800698,1751728241626,-460.0,0.00019178,2]
[369800700,1751728241636,-460.0,0.00019178,2]
[369800702,1751728241646,-460.0,0.00019178,2]
[369800704,1751728241657,-460.0,0.00019178,2]
[369800706,1751728241667,-761.67,0.00019178,2]
[369800707,1751728241678,-318.97979245,0.00019178,2]
[369800708,1751728241688,-460.0,0.00019178,2]
[369800709,1751728241697,-925.15,0.00019178,2]
[369800710,1751728241707,-460.0,0.00019178,2]
[369800711,1751728241717,-460.0,0.00019178,2]
[369800712,1751728241727,-460.0,0.00019178,2]
[369800713,1751728241737,-460.0,0.00019178,2]
[369800714,1751728241748,-2892.85,0.00019178,2]
[369800715,1751728241758,-460.0,0.00019178,2]
[369800716,1751728241768,-570.44,0.00019178,2]
[369800717,1751728241779,-460.0,0.00019178,2]
[369800718,1751728241791,-734.31,0.00019178,2]
[369800719,1751728241801,-966.89,0.00019178,2]
[369800720,1751728241811,-152.61936879,0.00019178,2]
[369800721,1751728241822,-460.0,0.00019178,2]
[369800722,1751728241832,-592.29,0.00019178,2]
[369800723,1751728241842,-203.046512,0.00019178,2]
[369800724,1751728241852,-460.0,0.00019178,2]
[369800725,1751728241863,-460.0,0.00019178,2]
[369800726,1751728241873,-460.0,0.00019178,2]
[369800727,1751728241883,-203.046512,0.00019178,2]
[369800728,1751728241893,-460.0,0.00019178,2]
[369800729,1751728241902,-460.0,0.00019178,2]
[369800730,1751728241912,-460.0,0.00019178,2]
[369800731,1751728241922,-460.0,0.00019178,2]
[369800732,1751728241932,-460.0,0.00019178,2]
[369800733,1751728241941,-460.0,0.00019178,2]
[369800734,1751728241951,-460.0,0.00019178,2]
[369800735,1751728241961,-1002.98,0.00019178,2]
[369800737,1751728241971,-460.0,0.00019178,2]
[369800738,1751728241981,-3321.82,0.00019178,2]
[369800739,1751728241990,-460.0,0.00019178,2]
[369800741,1751728242000,-913.47,0.00019178,2]
[369800743,1751728242010,-460.0,0.00019178,2]
[369800745,1751728242019,-383.21838934,0.00019178,2]
[369800747,1751728242029,-460.0,0.00019178,2]
[369800749,1751728242039,-460.0,0.00019178,2]
[369800751,1751728242049,-460.0,0.00019178,2]
[369800753,1751728242059,-462.01580626,0.00019178,2]
[369800755,1751728242069,-1667.94,0.00019178,2]